[Event "*** SCC Grand Prix: Titled Tuesday Blitz"]
[Site "Chess.com"]
[Date "2020.06.09"]
[Round "2"]
[White "LyonBeast"]
[Black "Mikhail_Golubev"]
[Result "1-0"]
[WhiteElo "2952"]
[BlackElo "2601"]
[TimeControl "180+1"]
[EndTime "9:18:07 PDT"]
[Termination "LyonBeast won on time"]

1. d4 {[%clk 0:03:00.9]} 1... Nf6 {[%clk 0:02:59.1]} 2. Bf4 {[%clk 0:03:00.2]}
2... g6 {[%clk 0:02:57.1]} 3. Nf3 {[%clk 0:02:59.1]} 3... Bg7 {[%clk 0:02:57]}
4. e3 {[%clk 0:02:59.4]} 4... O-O {[%clk 0:02:54.4]} 5. Be2 {[%clk 0:02:55.5]}
5... d6 {[%clk 0:02:52.5]} 6. c3 {[%clk 0:02:54.8]} 6... Nc6 {[%clk 0:02:44.3]}
7. h3 {[%clk 0:02:51.2]} 7... Re8 {[%clk 0:02:37.4]} 8. O-O {[%clk 0:02:49.1]}
8... Bf5 {[%clk 0:02:36.8]} 9. Nbd2 {[%clk 0:02:47.8]} 9... e5 {[%clk
0:02:35.2]} 10. Bg3 {[%clk 0:02:47.8]} 10... Ne4 {[%clk 0:02:21.2]} 11. Nxe4
{[%clk 0:02:46.5]} 11... Bxe4 {[%clk 0:02:21.1]} 12. Qb3 {[%clk 0:02:38.3]}
12... b6 {[%clk 0:02:06.1]} 13. Rad1 {[%clk 0:02:33.6]} 13... Qe7 {[%clk
0:01:56.3]} 14. Qa4 {[%clk 0:02:28]} 14... exd4 {[%clk 0:01:20.1]} 15. cxd4
{[%clk 0:02:19.3]} 15... a6 {[%clk 0:00:54.6]} 16. Rc1 {[%clk 0:02:12]} 16... b5
{[%clk 0:00:47.7]} 17. Qa3 {[%clk 0:02:11.7]} 17... Reb8 {[%clk 0:00:30.7]} 18.
Nd2 {[%clk 0:02:03.1]} 18... Bd5 {[%clk 0:00:30]} 19. Bf3 {[%clk 0:02:03.2]}
19... Bxf3 {[%clk 0:00:29.1]} 20. Nxf3 {[%clk 0:02:04.1]} 20... Rb6 {[%clk
0:00:28.7]} 21. Rc2 {[%clk 0:02:01.5]} 21... a5 {[%clk 0:00:26.4]} 22. Rfc1
{[%clk 0:02:00.4]} 22... Qe8 {[%clk 0:00:22.7]} 23. b3 {[%clk 0:01:25.8]} 23...
Nb4 {[%clk 0:00:16.8]} 24. Rxc7 {[%clk 0:01:24.4]} 24... Nd3 {[%clk 0:00:16.4]}
25. R1c2 {[%clk 0:01:19.8]} 25... Bf8 {[%clk 0:00:11.9]} 26. b4 {[%clk
0:01:11.8]} 26... Nxb4 {[%clk 0:00:11.2]} 27. Rc1 {[%clk 0:01:11.9]} 27... Nd5
{[%clk 0:00:09.6]} 28. R7c2 {[%clk 0:01:11.7]} 28... b4 {[%clk 0:00:09.7]} 29.
Qd3 {[%clk 0:01:08.7]} 29... Nc3 {[%clk 0:00:09.2]} 30. Nd2 {[%clk 0:01:08.8]}
30... Qb5 {[%clk 0:00:08.3]} 31. Qxb5 {[%clk 0:01:07.9]} 31... Rxb5 {[%clk
0:00:08.2]} 32. Nb1 {[%clk 0:01:04.6]} 32... Nxb1 {[%clk 0:00:07.1]} 33. Rxb1
{[%clk 0:01:05.5]} 33... a4 {[%clk 0:00:06.7]} 34. Kf1 {[%clk 0:01:05.2]} 34...
b3 {[%clk 0:00:05.9]} 35. axb3 {[%clk 0:01:04.4]} 35... Rxb3 {[%clk 0:00:05.6]}
36. Ra1 {[%clk 0:01:02.9]} 36... a3 {[%clk 0:00:04.8]} 37. Ke2 {[%clk
0:00:56.6]} 37... d5 {[%clk 0:00:02.6]} 38. Raa2 {[%clk 0:00:55.3]} 38... Bb4
{[%clk 0:00:02.2]} 39. Bh4 {[%clk 0:00:53.9]} 39... Kg7 {[%clk 0:00:01.7]} 40.
f3 {[%clk 0:00:53.2]} 40... h6 {[%clk 0:00:01.9]} 41. e4 {[%clk 0:00:50]} 41...
dxe4 {[%clk 0:00:01.3]} 42. fxe4 {[%clk 0:00:50.9]} 42... Bc3 {[%clk 0:00:01.2]}
43. Bf2 {[%clk 0:00:45.8]} 1-0

[Event "*** SCC Grand Prix: Titled Tuesday Blitz"]
[Site "Chess.com"]
[Date "2020.06.09"]
[Round "2"]
[White "MNyuyu"]
[Black "Lagmantr"]
[Result "0-1"]
[WhiteElo "2356"]
[BlackElo "2711"]
[TimeControl "180+1"]
[EndTime "9:18:07 PDT"]
[Termination "Lagmantr won by resignation"]

1. d4 {[%clk 0:03:00.9]} 1... d5 {[%clk 0:02:58.5]} 2. Nf3 {[%clk 0:03:00.7]}
2... Nf6 {[%clk 0:02:58.1]} 3. Bf4 {[%clk 0:03:00.9]} 3... g6 {[%clk 0:02:57.8]}
4. e3 {[%clk 0:03:01.1]} 4... Bg7 {[%clk 0:02:58]} 5. h3 {[%clk 0:03:01.5]} 5...
O-O {[%clk 0:02:58.5]} 6. Be2 {[%clk 0:03:01.9]} 6... c5 {[%clk 0:02:58.8]} 7.
c3 {[%clk 0:03:01.9]} 7... Nc6 {[%clk 0:02:58.8]} 8. O-O {[%clk 0:03:02.1]} 8...
Bf5 {[%clk 0:02:54.9]} 9. Nbd2 {[%clk 0:03:01.5]} 9... Rc8 {[%clk 0:02:53.8]}
10. Nh4 {[%clk 0:02:59.9]} 10... Bd7 {[%clk 0:02:49.1]} 11. Nhf3 {[%clk
0:02:59.4]} 11... Re8 {[%clk 0:02:44.3]} 12. Ne5 {[%clk 0:02:57.9]} 12... Nxe5
{[%clk 0:02:40.6]} 13. Bxe5 {[%clk 0:02:57.3]} 13... Qb6 {[%clk 0:02:35.1]} 14.
Qb3 {[%clk 0:02:56.6]} 14... c4 {[%clk 0:02:35.3]} 15. Qxb6 {[%clk 0:02:56.1]}
15... axb6 {[%clk 0:02:36.2]} 16. a3 {[%clk 0:02:55.8]} 16... b5 {[%clk
0:02:35.3]} 17. Bf3 {[%clk 0:02:55.5]} 17... e6 {[%clk 0:02:33.2]} 18. Rfe1
{[%clk 0:02:53.2]} 18... Bc6 {[%clk 0:02:29.8]} 19. e4 {[%clk 0:02:44.2]} 19...
dxe4 {[%clk 0:02:29.1]} 20. Nxe4 {[%clk 0:02:42.9]} 20... Nxe4 {[%clk
0:02:27.8]} 21. Bxg7 {[%clk 0:02:39.8]} 21... Nxc3 {[%clk 0:02:22.1]} 22. bxc3
{[%clk 0:02:29.3]} 22... Kxg7 {[%clk 0:02:17.9]} 23. Reb1 {[%clk 0:02:28]} 23...
Ra8 {[%clk 0:02:14.6]} 24. Rb4 {[%clk 0:02:16.7]} 24... Ra5 {[%clk 0:02:13.9]}
25. a4 {[%clk 0:01:56]} 25... Rea8 {[%clk 0:02:13.3]} 26. Bd1 {[%clk 0:01:55.2]}
26... Kf6 {[%clk 0:01:57.1]} 27. Rab1 {[%clk 0:01:53.9]} 27... bxa4 {[%clk
0:01:57.2]} 28. Rxc4 {[%clk 0:01:53.1]} 28... a3 {[%clk 0:01:57.5]} 29. Rcb4
{[%clk 0:01:52.1]} 29... a2 {[%clk 0:01:55.2]} 30. Ra1 {[%clk 0:01:51.5]} 30...
Ra3 {[%clk 0:01:55.2]} 31. Bb3 {[%clk 0:01:48.4]} 31... b5 {[%clk 0:01:53.7]}
32. Kf1 {[%clk 0:01:46.4]} 32... Bd5 {[%clk 0:01:43.6]} 33. Bxd5 {[%clk
0:01:43.3]} 33... exd5 {[%clk 0:01:44.5]} 34. Rxb5 {[%clk 0:01:42.6]} 34... Rxc3
{[%clk 0:01:44.8]} 35. Rb2 {[%clk 0:01:42.6]} 35... Rca3 {[%clk 0:01:42.3]} 36.
f3 {[%clk 0:01:37.8]} 36... R8a4 {[%clk 0:01:39.4]} 37. Kf2 {[%clk 0:01:36]}
37... h5 {[%clk 0:01:37.7]} 38. h4 {[%clk 0:01:34.8]} 38... Rxd4 {[%clk
0:01:36.4]} 39. Rbxa2 {[%clk 0:01:23.8]} 39... Rxa2+ {[%clk 0:01:37.3]} 40. Rxa2
{[%clk 0:01:23.4]} 40... Rxh4 {[%clk 0:01:36.3]} 41. Ra6+ {[%clk 0:01:22.7]}
41... Kg7 {[%clk 0:01:34.7]} 42. Rd6 {[%clk 0:01:22]} 42... d4 {[%clk 0:01:26]}
43. g3 {[%clk 0:01:21.5]} 43... Rh2+ {[%clk 0:01:25.6]} 44. Ke1 {[%clk
0:01:21.2]} 44... Rg2 {[%clk 0:01:25.2]} 45. Rxd4 {[%clk 0:01:18.3]} 45... Rxg3
{[%clk 0:01:25.2]} 46. Kf2 {[%clk 0:01:18.1]} 46... Rg5 {[%clk 0:01:25.3]} 47.
Rd7 {[%clk 0:01:15.8]} 47... Ra5 {[%clk 0:01:22.4]} 48. Kg3 {[%clk 0:01:15.2]}
48... g5 {[%clk 0:01:22.6]} 49. Rc7 {[%clk 0:01:14]} 49... Kg6 {[%clk
0:01:22.8]} 50. Rc6+ {[%clk 0:01:13.3]} 50... f6 {[%clk 0:01:23.1]} 51. Rc8
{[%clk 0:01:12.8]} 51... h4+ {[%clk 0:01:21.9]} 52. Kh3 {[%clk 0:01:09.3]} 52...
Ra1 {[%clk 0:01:17.8]} 53. f4 {[%clk 0:01:07]} 53... Ra3+ {[%clk 0:01:16.8]} 54.
Kh2 {[%clk 0:01:04.7]} 54... g4 {[%clk 0:01:14.3]} 55. Rh8 {[%clk 0:01:00.2]}
55... Ra2+ {[%clk 0:01:13.9]} 56. Kg1 {[%clk 0:00:59.2]} 56... h3 {[%clk
0:01:14.8]} 57. Rb8 {[%clk 0:00:52.1]} 57... Kf5 {[%clk 0:01:14.4]} 58. Rb4
{[%clk 0:00:49.3]} 58... g3 {[%clk 0:01:13.4]} 59. Rb1 {[%clk 0:00:48.6]} 59...
Kxf4 {[%clk 0:01:10.7]} 60. Rf1+ {[%clk 0:00:47.4]} 60... Kg4 {[%clk 0:01:10.5]}
61. Rb1 {[%clk 0:00:46.5]} 61... f5 {[%clk 0:01:09.5]} 62. Rb4+ {[%clk
0:00:45.5]} 62... f4 {[%clk 0:01:09.6]} 63. Rb1 {[%clk 0:00:45.3]} 63... h2+
{[%clk 0:01:07.7]} 64. Kh1 {[%clk 0:00:44.4]} 64... Kh3 {[%clk 0:01:08]} 0-1

[Event "*** SCC Grand Prix: Titled Tuesday Blitz"]
[Site "Chess.com"]
[Date "2020.06.09"]
[Round "2"]
[White "TargetA"]
[Black "BillieKimbah"]
[Result "0-1"]
[WhiteElo "2577"]
[BlackElo "2873"]
[TimeControl "180+1"]
[EndTime "9:18:08 PDT"]
[Termination "BillieKimbah won by resignation"]

1. e4 {[%clk 0:03:00.9]} 1... c5 {[%clk 0:02:55.3]} 2. Nf3 {[%clk 0:02:59.9]}
2... e6 {[%clk 0:02:55.2]} 3. d4 {[%clk 0:02:59.3]} 3... cxd4 {[%clk 0:02:56.1]}
4. Nxd4 {[%clk 0:02:59.4]} 4... Nc6 {[%clk 0:02:56.5]} 5. Nc3 {[%clk 0:02:58.5]}
5... Qc7 {[%clk 0:02:56.7]} 6. Be3 {[%clk 0:02:57.8]} 6... a6 {[%clk 0:02:57.1]}
7. f4 {[%clk 0:02:57.6]} 7... b5 {[%clk 0:02:54.2]} 8. Nxc6 {[%clk 0:02:56.1]}
8... Qxc6 {[%clk 0:02:54.5]} 9. a3 {[%clk 0:02:55.6]} 9... Bb7 {[%clk 0:02:54]}
10. Bd3 {[%clk 0:02:54.9]} 10... Rc8 {[%clk 0:02:52.9]} 11. O-O {[%clk
0:02:43.3]} 11... Nf6 {[%clk 0:02:51.6]} 12. Qe2 {[%clk 0:02:39]} 12... Bc5
{[%clk 0:02:45.5]} 13. Bxc5 {[%clk 0:02:33.9]} 13... Qxc5+ {[%clk 0:02:46.4]}
14. Qf2 {[%clk 0:02:30.5]} 14... d6 {[%clk 0:02:37.7]} 15. Rae1 {[%clk
0:02:14.2]} 15... Qxf2+ {[%clk 0:02:28.5]} 16. Kxf2 {[%clk 0:02:08.5]} 16... Ke7
{[%clk 0:02:25.4]} 17. h3 {[%clk 0:02:03.7]} 17... h5 {[%clk 0:02:24.7]} 18. Ke3
{[%clk 0:02:01.3]} 18... h4 {[%clk 0:02:22.9]} 19. a4 {[%clk 0:01:57.4]} 19...
b4 {[%clk 0:02:07.2]} 20. Ne2 {[%clk 0:01:56.3]} 20... Nd7 {[%clk 0:01:57.5]}
21. Nd4 {[%clk 0:01:49.4]} 21... Nc5 {[%clk 0:01:52.8]} 22. b3 {[%clk 0:01:47]}
22... g6 {[%clk 0:01:43.6]} 23. Kd2 {[%clk 0:01:40]} 23... Rhd8 {[%clk
0:01:26.6]} 24. Re2 {[%clk 0:01:34.8]} 24... e5 {[%clk 0:01:25.2]} 25. Nf3
{[%clk 0:01:30.7]} 25... Nxd3 {[%clk 0:01:20.2]} 26. cxd3 {[%clk 0:01:17.5]}
26... Rc3 {[%clk 0:01:20.6]} 27. fxe5 {[%clk 0:01:14.8]} 27... dxe5 {[%clk
0:01:10.2]} 28. Nxe5 {[%clk 0:01:15.7]} 28... Ke6 {[%clk 0:01:10.5]} 29. Rxf7
{[%clk 0:00:57.7]} 29... Ba8 {[%clk 0:00:59.1]} 30. Ref2 {[%clk 0:00:52.7]}
30... Kxe5 {[%clk 0:00:58.4]} 31. Re7+ {[%clk 0:00:52.3]} 31... Kd4 {[%clk
0:00:57.4]} 32. Rff7 {[%clk 0:00:46.5]} 32... Rxd3+ {[%clk 0:00:56.8]} 33. Ke2
{[%clk 0:00:45.6]} 33... Re3+ {[%clk 0:00:55.8]} 34. Kd2 {[%clk 0:00:46.1]}
34... Rxe4 {[%clk 0:00:51.4]} 35. Rd7+ {[%clk 0:00:44.4]} 35... Rxd7 {[%clk
0:00:51.2]} 36. Rxd7+ {[%clk 0:00:45.3]} 36... Kc5 {[%clk 0:00:49.8]} 37. Ra7
{[%clk 0:00:42.9]} 37... Rd4+ {[%clk 0:00:47.1]} 38. Ke3 {[%clk 0:00:42.2]}
38... Bc6 {[%clk 0:00:41.1]} 39. Rxa6 {[%clk 0:00:40.7]} 39... Rd1 {[%clk
0:00:41.4]} 40. Ra7 {[%clk 0:00:35.4]} 40... Rb1 {[%clk 0:00:40.6]} 41. Ra5+
{[%clk 0:00:33.1]} 41... Kb6 {[%clk 0:00:39.7]} 42. Rg5 {[%clk 0:00:33.4]} 42...
Rxb3+ {[%clk 0:00:39.8]} 43. Kd4 {[%clk 0:00:34.2]} 43... Rg3 {[%clk 0:00:40.2]}
44. a5+ {[%clk 0:00:30.2]} 44... Ka6 {[%clk 0:00:34.4]} 45. Rc5 {[%clk
0:00:28.1]} 45... Bxg2 {[%clk 0:00:34.5]} 0-1

[Event "*** SCC Grand Prix: Titled Tuesday Blitz"]
[Site "Chess.com"]
[Date "2020.06.09"]
[Round "2"]
[White "Manukyan_Artak"]
[Black "Bayernbk"]
[Result "0-1"]
[WhiteElo "2275"]
[BlackElo "2474"]
[TimeControl "180+1"]
[EndTime "9:18:08 PDT"]
[Termination "Bayernbk won by resignation"]

1. e4 {[%clk 0:03:00.9]} 1... d5 {[%clk 0:02:58.2]} 2. exd5 {[%clk 0:02:59.8]}
2... Nf6 {[%clk 0:02:58.7]} 3. Nc3 {[%clk 0:02:59]} 3... Bg4 {[%clk 0:02:58.6]}
4. f3 {[%clk 0:02:58.4]} 4... Bf5 {[%clk 0:02:58.1]} 5. Bc4 {[%clk 0:02:58.9]}
5... a6 {[%clk 0:02:57.5]} 6. a4 {[%clk 0:02:58.1]} 6... Nbd7 {[%clk 0:02:57.7]}
7. d3 {[%clk 0:02:53]} 7... Nb6 {[%clk 0:02:55.4]} 8. Bb3 {[%clk 0:02:52.7]}
8... Nbxd5 {[%clk 0:02:55.2]} 9. Nge2 {[%clk 0:02:51.5]} 9... e6 {[%clk
0:02:54.7]} 10. Nxd5 {[%clk 0:02:48.7]} 10... Nxd5 {[%clk 0:02:53.9]} 11. Nc3
{[%clk 0:02:48.5]} 11... Nxc3 {[%clk 0:02:52]} 12. bxc3 {[%clk 0:02:48.6]} 12...
Bd6 {[%clk 0:02:52.4]} 13. O-O {[%clk 0:02:45.8]} 13... Qh4 {[%clk 0:02:50.3]}
14. f4 {[%clk 0:02:42.7]} 14... O-O {[%clk 0:02:45.3]} 15. Qe1 {[%clk
0:02:39.7]} 15... Qxe1 {[%clk 0:02:41]} 16. Rxe1 {[%clk 0:02:40.6]} 16... Rfd8
{[%clk 0:02:41.2]} 17. Be3 {[%clk 0:02:38.4]} 17... b5 {[%clk 0:02:18.7]} 18.
axb5 {[%clk 0:02:37.3]} 18... axb5 {[%clk 0:02:19.6]} 19. Kf2 {[%clk 0:02:36.9]}
19... Kf8 {[%clk 0:02:13.5]} 20. c4 {[%clk 0:02:29.3]} 20... bxc4 {[%clk
0:02:04.4]} 21. Bxc4 {[%clk 0:02:28.4]} 21... Rdb8 {[%clk 0:02:04.9]} 22. Rxa8
{[%clk 0:02:18.7]} 22... Rxa8 {[%clk 0:02:03.7]} 23. g3 {[%clk 0:02:18.8]} 23...
Rb8 {[%clk 0:01:59]} 24. Bd4 {[%clk 0:02:15.3]} 24... Ba3 {[%clk 0:01:35.5]} 25.
Bc3 {[%clk 0:02:07.5]} 25... Bb4 {[%clk 0:01:31.2]} 26. Bxb4+ {[%clk 0:01:59.7]}
26... Rxb4 {[%clk 0:01:32.1]} 27. Ke3 {[%clk 0:01:57.4]} 27... Ke7 {[%clk
0:01:22]} 28. Kd2 {[%clk 0:01:57.1]} 28... h5 {[%clk 0:01:15.4]} 29. Ra1 {[%clk
0:01:56.7]} 29... h4 {[%clk 0:01:12.3]} 30. Kc3 {[%clk 0:01:51.4]} 30... Rb8
{[%clk 0:01:10.3]} 31. Ra7 {[%clk 0:01:49.3]} 31... Kd6 {[%clk 0:01:08.9]} 32.
Ra6+ {[%clk 0:01:46.7]} 32... Kd7 {[%clk 0:01:07.3]} 33. Ra1 {[%clk 0:01:37.1]}
33... hxg3 {[%clk 0:01:06.9]} 34. hxg3 {[%clk 0:01:37.3]} 34... Rh8 {[%clk
0:01:07.5]} 35. Rg1 {[%clk 0:01:36.1]} 35... Bg4 {[%clk 0:01:07.9]} 36. d4
{[%clk 0:01:34.5]} 36... Rh2 {[%clk 0:01:06.9]} 37. Bd3 {[%clk 0:01:34]} 37...
Kd6 {[%clk 0:01:03.7]} 38. Kb4 {[%clk 0:01:33.7]} 38... Kd5 {[%clk 0:01:01.7]}
39. c3 {[%clk 0:01:33.4]} 39... Rb2+ {[%clk 0:01:01.6]} 40. Ka3 {[%clk
0:01:33.4]} 40... Rd2 {[%clk 0:01:01.9]} 41. Ba6 {[%clk 0:01:30.3]} 41... Ke4
{[%clk 0:01:00.6]} 42. Bb7+ {[%clk 0:01:16.2]} 42... Kd3 {[%clk 0:00:56.4]} 43.
Rc1 {[%clk 0:01:16.6]} 43... Rd1 {[%clk 0:00:40.2]} 44. Ba6+ {[%clk 0:01:11.8]}
44... Ke3 {[%clk 0:00:32.6]} 45. Rxd1 {[%clk 0:01:10.9]} 45... Bxd1 {[%clk
0:00:33.5]} 46. Bc8 {[%clk 0:01:03.5]} 46... Kf3 {[%clk 0:00:31.5]} 47. f5
{[%clk 0:01:03]} 47... exf5 {[%clk 0:00:31.5]} 48. Bxf5 {[%clk 0:01:02.9]} 48...
Kxg3 {[%clk 0:00:32.1]} 49. c4 {[%clk 0:01:03]} 49... Kf4 {[%clk 0:00:32]} 50.
Bd7 {[%clk 0:01:02.3]} 50... Ke4 {[%clk 0:00:30.8]} 51. d5 {[%clk 0:01:00.4]}
51... Kd4 {[%clk 0:00:31.2]} 52. Kb4 {[%clk 0:01:00.7]} 52... Be2 {[%clk
0:00:31.5]} 53. Bb5 {[%clk 0:00:53.6]} 53... g5 {[%clk 0:00:31.7]} 54. c5 {[%clk
0:00:52.2]} 54... Bxb5 {[%clk 0:00:30.9]} 55. Kxb5 {[%clk 0:00:53.1]} 55... Kxd5
{[%clk 0:00:31.4]} 0-1

[Event "*** SCC Grand Prix: Titled Tuesday Blitz"]
[Site "Chess.com"]
[Date "2020.06.09"]
[Round "2"]
[White "attack2mateU"]
[Black "LuckSlayeer"]
[Result "1-0"]
[WhiteElo "2717"]
[BlackElo "2456"]
[TimeControl "180+1"]
[EndTime "9:18:09 PDT"]
[Termination "attack2mateU won by resignation"]

1. e4 {[%clk 0:03:00.9]} 1... c5 {[%clk 0:02:59.5]} 2. Nf3 {[%clk 0:03:00.5]}
2... Nc6 {[%clk 0:03:00.1]} 3. d4 {[%clk 0:02:54.3]} 3... cxd4 {[%clk 0:03:01]}
4. Nxd4 {[%clk 0:02:54.5]} 4... e5 {[%clk 0:03:01.6]} 5. Nb5 {[%clk 0:02:54.2]}
5... d6 {[%clk 0:03:01.8]} 6. c4 {[%clk 0:02:53.4]} 6... Be7 {[%clk 0:03:01.9]}
7. N1c3 {[%clk 0:02:52.9]} 7... a6 {[%clk 0:03:00.6]} 8. Na3 {[%clk 0:02:53.3]}
8... Be6 {[%clk 0:03:01.2]} 9. Be2 {[%clk 0:02:51]} 9... Bg5 {[%clk 0:02:52.8]}
10. O-O {[%clk 0:02:51.2]} 10... Bxc1 {[%clk 0:02:51.1]} 11. Rxc1 {[%clk
0:02:50.9]} 11... Nf6 {[%clk 0:02:48.3]} 12. Qd2 {[%clk 0:02:42.8]} 12... O-O
{[%clk 0:02:45.4]} 13. Nc2 {[%clk 0:02:42.5]} 13... Rc8 {[%clk 0:02:14.6]} 14.
Rfd1 {[%clk 0:02:40.4]} 14... Qb6 {[%clk 0:01:56.4]} 15. h3 {[%clk 0:02:30.7]}
15... Rfd8 {[%clk 0:01:51.3]} 16. b3 {[%clk 0:02:25.1]} 16... h6 {[%clk
0:01:40.7]} 17. Qd3 {[%clk 0:02:12.5]} 17... Qa7 {[%clk 0:01:21.4]} 18. Rd2
{[%clk 0:02:09.9]} 18... Qc5 {[%clk 0:00:31.2]} 19. Rcd1 {[%clk 0:02:01.8]}
19... b5 {[%clk 0:00:31.2]} 20. cxb5 {[%clk 0:01:40.1]} 20... axb5 {[%clk
0:00:32.1]} 21. Nxb5 {[%clk 0:01:37.3]} 21... d5 {[%clk 0:00:23.7]} 22. exd5
{[%clk 0:01:12.5]} 22... Rxd5 {[%clk 0:00:14]} 23. Qe3 {[%clk 0:01:10.9]} 23...
Qxe3 {[%clk 0:00:08.9]} 24. Nxe3 {[%clk 0:01:10.4]} 24... Rxd2 {[%clk
0:00:08.7]} 25. Rxd2 {[%clk 0:01:11.3]} 25... Ne4 {[%clk 0:00:08.9]} 26. Rc2
{[%clk 0:01:09]} 26... Nd4 {[%clk 0:00:02.3]} 27. Rxc8+ {[%clk 0:01:06.5]} 27...
Bxc8 {[%clk 0:00:03.2]} 28. Nxd4 {[%clk 0:01:05.6]} 28... exd4 {[%clk
0:00:04.1]} 29. Nc2 {[%clk 0:01:04.9]} 29... Nc3 {[%clk 0:00:03.9]} 30. Nxd4
{[%clk 0:01:03.1]} 30... Nxa2 {[%clk 0:00:04.2]} 31. Kf1 {[%clk 0:01:02.2]}
31... Nb4 {[%clk 0:00:04.3]} 32. Ke1 {[%clk 0:01:02.4]} 32... Kf8 {[%clk
0:00:04.8]} 33. Kd2 {[%clk 0:01:02.8]} 33... Ke7 {[%clk 0:00:05.3]} 34. Bc4
{[%clk 0:01:02.3]} 34... f6 {[%clk 0:00:03.9]} 35. Kc3 {[%clk 0:01:02.1]} 35...
Na2+ {[%clk 0:00:03.4]} 36. Kb2 {[%clk 0:01:01.8]} 36... Nb4 {[%clk 0:00:03.7]}
37. Ka3 {[%clk 0:01:02.1]} 37... Na6 {[%clk 0:00:03.8]} 38. b4 {[%clk
0:01:02.3]} 38... Nc7 {[%clk 0:00:03.5]} 39. b5 {[%clk 0:01:02]} 39... Kd6
{[%clk 0:00:03.8]} 40. Kb4 {[%clk 0:01:02.3]} 40... Ne8 {[%clk 0:00:02.8]} 41.
Bf7 {[%clk 0:00:57.2]} 41... Nc7 {[%clk 0:00:02.3]} 42. b6 {[%clk 0:00:53.3]}
42... Na8 {[%clk 0:00:02.5]} 43. Kb5 {[%clk 0:00:51.3]} 43... Bb7 {[%clk
0:00:02.3]} 44. g3 {[%clk 0:00:45.4]} 44... h5 {[%clk 0:00:01.5]} 45. Bxh5
{[%clk 0:00:44.8]} 45... Kd5 {[%clk 0:00:01.9]} 46. Bf3+ {[%clk 0:00:44.2]} 1-0

[Event "*** SCC Grand Prix: Titled Tuesday Blitz"]
[Site "Chess.com"]
[Date "2020.06.09"]
[Round "2"]
[White "Angel_Hranitel_37"]
[Black "OdChessWorld"]
[Result "0-1"]
[WhiteElo "2372"]
[BlackElo "2781"]
[TimeControl "180+1"]
[EndTime "9:18:11 PDT"]
[Termination "OdChessWorld won on time"]

1. d4 {[%clk 0:03:00.9]} 1... Nf6 {[%clk 0:02:49.7]} 2. Nf3 {[%clk 0:03:01.2]}
2... g6 {[%clk 0:02:49.6]} 3. g3 {[%clk 0:03:01.7]} 3... Bg7 {[%clk 0:02:50.4]}
4. Bg2 {[%clk 0:03:02.6]} 4... O-O {[%clk 0:02:51.1]} 5. O-O {[%clk 0:03:02.8]}
5... d6 {[%clk 0:02:51.4]} 6. Nc3 {[%clk 0:03:02.9]} 6... a6 {[%clk 0:02:47.7]}
7. a4 {[%clk 0:03:02.7]} 7... Nc6 {[%clk 0:02:46.1]} 8. e4 {[%clk 0:03:02.3]}
8... e5 {[%clk 0:02:45.7]} 9. dxe5 {[%clk 0:02:57.4]} 9... Nxe5 {[%clk
0:02:43.1]} 10. Nxe5 {[%clk 0:02:40.1]} 10... dxe5 {[%clk 0:02:44]} 11. Qxd8
{[%clk 0:02:40.3]} 11... Rxd8 {[%clk 0:02:31.4]} 12. Bg5 {[%clk 0:02:40.9]}
12... c6 {[%clk 0:02:30.5]} 13. a5 {[%clk 0:02:40.8]} 13... h6 {[%clk
0:02:29.2]} 14. Be3 {[%clk 0:02:38.8]} 14... Ng4 {[%clk 0:02:23]} 15. Bb6 {[%clk
0:02:38.5]} 15... Rd2 {[%clk 0:01:52.9]} 16. Rad1 {[%clk 0:02:37.2]} 16... Rxd1
{[%clk 0:01:48.3]} 17. Rxd1 {[%clk 0:02:38.1]} 17... Be6 {[%clk 0:01:48.9]} 18.
f3 {[%clk 0:02:19.8]} 18... Nf6 {[%clk 0:01:47.6]} 19. Na4 {[%clk 0:02:19.9]}
19... Nd7 {[%clk 0:01:42.3]} 20. Bf1 {[%clk 0:02:17.1]} 20... Bf8 {[%clk
0:01:40.4]} 21. Be3 {[%clk 0:01:31.2]} 21... Rb8 {[%clk 0:01:37.5]} 22. Kf2
{[%clk 0:01:25.8]} 22... Kg7 {[%clk 0:01:32]} 23. Nb6 {[%clk 0:01:12.1]} 23...
Nxb6 {[%clk 0:01:21.9]} 24. Bxb6 {[%clk 0:01:13]} 24... Re8 {[%clk 0:01:20.8]}
25. c3 {[%clk 0:00:59.3]} 25... Be7 {[%clk 0:01:11.7]} 26. b4 {[%clk 0:00:59.1]}
26... h5 {[%clk 0:01:10.3]} 27. Bc7 {[%clk 0:00:28.4]} 27... f6 {[%clk
0:01:08.2]} 28. Bb6 {[%clk 0:00:21.1]} 28... Kf7 {[%clk 0:01:08]} 29. Bc5 {[%clk
0:00:16.9]} 29... Rh8 {[%clk 0:01:01.9]} 30. h3 {[%clk 0:00:12]} 30... g5 {[%clk
0:00:59.8]} 31. g4 {[%clk 0:00:07.8]} 31... hxg4 {[%clk 0:00:43]} 32. hxg4
{[%clk 0:00:08.5]} 32... Bxc5+ {[%clk 0:00:34.9]} 33. bxc5 {[%clk 0:00:09.4]}
33... Ke7 {[%clk 0:00:35.2]} 34. Bg2 {[%clk 0:00:08.4]} 34... Bc4 {[%clk
0:00:27.9]} 35. Rb1 {[%clk 0:00:03.2]} 35... Rb8 {[%clk 0:00:27.5]} 0-1